[Event "Late-Titled-Tuesday-Blitz-October-24-2023"]
[Site "Chess.com"]
[Date "2023.10.24"]
[Round "7"]
[White "Ykow"]
[Black "jk13"]
[Result "1-0"]
[WhiteElo "2552"]
[BlackElo "2677"]
[TimeControl "180+1"]
[EndTime "15:15:44 PDT"]
[Termination "Ykow won by checkmate"]

1. e4 {[%clk 0:02:42.6]} 1... e5 {[%clk 0:02:59.8]} 2. Nf3 {[%clk 0:02:41.8]}
2... Nc6 {[%clk 0:03:00.5]} 3. Bc4 {[%clk 0:02:41.1]} 3... Bc5 {[%clk
0:03:00.2]} 4. d3 {[%clk 0:02:40.5]} 4... Nf6 {[%clk 0:03:00.1]} 5. h3 {[%clk
0:02:40.5]} 5... O-O {[%clk 0:03:00.2]} 6. a3 {[%clk 0:02:37.8]} 6... d5 {[%clk
0:03:00]} 7. exd5 {[%clk 0:02:37.7]} 7... Nxd5 {[%clk 0:03:00.9]} 8. O-O {[%clk
0:02:37.9]} 8... Nb6 {[%clk 0:02:57.6]} 9. Ba2 {[%clk 0:02:37.5]} 9... h6 {[%clk
0:02:53.9]} 10. Nbd2 {[%clk 0:02:37]} 10... Re8 {[%clk 0:02:51.2]} 11. Re1
{[%clk 0:02:33.8]} 11... Be6 {[%clk 0:02:46.8]} 12. Bxe6 {[%clk 0:02:26.5]}
12... Rxe6 {[%clk 0:02:47]} 13. b4 {[%clk 0:02:22.2]} 13... Bf8 {[%clk
0:02:40.2]} 14. Bb2 {[%clk 0:02:21.5]} 14... f6 {[%clk 0:02:21.3]} 15. b5 {[%clk
0:02:10.3]} 15... Ne7 {[%clk 0:01:59.3]} 16. a4 {[%clk 0:02:09.4]} 16... a6
{[%clk 0:01:50]} 17. d4 {[%clk 0:02:01.7]} 17... axb5 {[%clk 0:01:43.7]} 18.
axb5 {[%clk 0:02:02.6]} 18... Na4 {[%clk 0:01:43.8]} 19. Qb1 {[%clk 0:01:54.7]}
19... Nxb2 {[%clk 0:01:32.2]} 20. Qxb2 {[%clk 0:01:55.6]} 20... Rxa1 {[%clk
0:01:32.1]} 21. Qxa1 {[%clk 0:01:54.8]} 21... Ng6 {[%clk 0:01:27.8]} 22. Qa2
{[%clk 0:01:49.9]} 22... Qd7 {[%clk 0:01:22.8]} 23. dxe5 {[%clk 0:01:42.2]}
23... Kh8 {[%clk 0:01:18.6]} 24. Qc4 {[%clk 0:01:28.2]} 24... fxe5 {[%clk
0:01:07.2]} 25. Nb3 {[%clk 0:01:15]} 25... Bd6 {[%clk 0:01:04.1]} 26. Nc5 {[%clk
0:01:11.7]} 26... Bxc5 {[%clk 0:01:02.3]} 27. Qxc5 {[%clk 0:01:12.6]} 27... e4
{[%clk 0:00:59.2]} 28. Qf5 {[%clk 0:00:54.9]} 28... Qe8 {[%clk 0:00:42.4]} 29.
c4 {[%clk 0:00:45.4]} 29... Re7 {[%clk 0:00:26.5]} 30. Nd2 {[%clk 0:00:41]}
30... e3 {[%clk 0:00:25.7]} 31. fxe3 {[%clk 0:00:39.1]} 31... Rxe3 {[%clk
0:00:26.6]} 32. Rxe3 {[%clk 0:00:39.5]} 32... Qxe3+ {[%clk 0:00:27.3]} 33. Qf2
{[%clk 0:00:40.2]} 33... Qe5 {[%clk 0:00:25.8]} 34. Nf3 {[%clk 0:00:39.4]} 34...
Qe4 {[%clk 0:00:24.7]} 35. Qd4 {[%clk 0:00:36.5]} 35... Qe7 {[%clk 0:00:22.6]}
36. c5 {[%clk 0:00:35.4]} 36... Qf7 {[%clk 0:00:18.1]} 37. b6 {[%clk 0:00:31.7]}
37... cxb6 {[%clk 0:00:17.9]} 38. cxb6 {[%clk 0:00:32.6]} 38... Nf4 {[%clk
0:00:17.1]} 39. Qd8+ {[%clk 0:00:32.9]} 39... Kh7 {[%clk 0:00:17.4]} 40. Qc7
{[%clk 0:00:33.8]} 40... Qf6 {[%clk 0:00:13.7]} 41. Qxb7 {[%clk 0:00:32.1]}
41... Qf5 {[%clk 0:00:10.7]} 42. Qc6 {[%clk 0:00:26.1]} 42... Qd3 {[%clk
0:00:07.2]} 43. b7 {[%clk 0:00:18.4]} 43... Qe2 {[%clk 0:00:06.5]} 44. Ng5+
{[%clk 0:00:12.1]} 44... hxg5 {[%clk 0:00:06.3]} 45. b8=Q {[%clk 0:00:13]} 45...
Qe1+ {[%clk 0:00:05.6]} 46. Kh2 {[%clk 0:00:13.3]} 46... Ne2 {[%clk 0:00:05.2]}
47. Qe4+ {[%clk 0:00:11.8]} 47... g6 {[%clk 0:00:04.4]} 48. Qe7+ {[%clk
0:00:11.7]} 48... Kh6 {[%clk 0:00:04.9]} 49. Qh8# {[%clk 0:00:12.5]} 1-0

[Event "Late-Titled-Tuesday-Blitz-October-24-2023"]
[Site "Chess.com"]
[Date "2023.10.24"]
[Round "7"]
[White "Tunahan_Makaraci"]
[Black "IgorBjelobrk"]
[Result "0-1"]
[WhiteElo "2426"]
[BlackElo "2595"]
[TimeControl "180+1"]
[EndTime "15:15:45 PDT"]
[Termination "IgorBjelobrk won on time"]

1. e4 {[%clk 0:02:21.8]} 1... e6 {[%clk 0:02:59.2]} 2. d4 {[%clk 0:02:20.4]}
2... d5 {[%clk 0:02:59]} 3. Nc3 {[%clk 0:02:20.5]} 3... Bb4 {[%clk 0:02:58.3]}
4. Ne2 {[%clk 0:02:18.2]} 4... dxe4 {[%clk 0:02:55.4]} 5. a3 {[%clk 0:02:17.9]}
5... Bxc3+ {[%clk 0:02:53.8]} 6. Nxc3 {[%clk 0:02:18.8]} 6... Nc6 {[%clk
0:02:52.9]} 7. d5 {[%clk 0:02:18]} 7... exd5 {[%clk 0:02:48.6]} 8. Qxd5 {[%clk
0:02:18.5]} 8... Be6 {[%clk 0:02:45.6]} 9. Qxe4 {[%clk 0:02:17.5]} 9... Nf6
{[%clk 0:02:42]} 10. Qa4 {[%clk 0:02:17.4]} 10... O-O {[%clk 0:02:39.5]} 11. Be3
{[%clk 0:02:03.4]} 11... Ng4 {[%clk 0:02:36.4]} 12. Rd1 {[%clk 0:01:58.2]} 12...
Qe7 {[%clk 0:02:31.1]} 13. Qf4 {[%clk 0:01:57.8]} 13... Rfe8 {[%clk 0:02:21.3]}
14. Be2 {[%clk 0:01:56]} 14... Nxe3 {[%clk 0:02:20.7]} 15. Qxe3 {[%clk
0:01:55.9]} 15... Qh4 {[%clk 0:01:54.9]} 16. Qg3 {[%clk 0:01:28]} 16... Qxg3
{[%clk 0:01:36.8]} 17. fxg3 {[%clk 0:01:16.6]} 17... Rad8 {[%clk 0:01:22.9]} 18.
Kf2 {[%clk 0:01:16.4]} 18... Nd4 {[%clk 0:01:22.6]} 19. Rd2 {[%clk 0:01:10.8]}
19... c5 {[%clk 0:01:14.5]} 20. Rhd1 {[%clk 0:01:04.3]} 20... a6 {[%clk
0:00:58]} 21. b4 {[%clk 0:00:57.3]} 21... b6 {[%clk 0:00:57]} 22. bxc5 {[%clk
0:00:51.8]} 22... bxc5 {[%clk 0:00:57.2]} 23. Na4 {[%clk 0:00:52]} 23... Rd5
{[%clk 0:00:57.4]} 24. c3 {[%clk 0:00:39.2]} 24... Rf5+ {[%clk 0:00:57]} 25. Bf3
{[%clk 0:00:39.5]} 25... Nb3 {[%clk 0:00:55.8]} 26. Rd6 {[%clk 0:00:36.7]} 26...
a5 {[%clk 0:00:45.6]} 27. Rc6 {[%clk 0:00:27.9]} 27... h5 {[%clk 0:00:42.5]} 28.
Rcd6 {[%clk 0:00:21.9]} 28... g5 {[%clk 0:00:41.7]} 29. Kg1 {[%clk 0:00:20.1]}
29... g4 {[%clk 0:00:40.9]} 30. Be4 {[%clk 0:00:16.9]} 30... Re5 {[%clk
0:00:40]} 31. Bc2 {[%clk 0:00:17.2]} 31... Rb8 {[%clk 0:00:36.3]} 32. Rb1 {[%clk
0:00:12.7]} 32... c4 {[%clk 0:00:35]} 33. Nb6 {[%clk 0:00:09.5]} 33... Re2
{[%clk 0:00:32.3]} 34. Bd1 {[%clk 0:00:08.9]} 34... Ra2 {[%clk 0:00:31.5]} 35.
Nd7 {[%clk 0:00:06.3]} 35... Bxd7 {[%clk 0:00:29.5]} 36. Rxd7 {[%clk 0:00:06.5]}
36... Rxa3 {[%clk 0:00:29.4]} 37. Be2 {[%clk 0:00:06.2]} 37... Rc8 {[%clk
0:00:28.3]} 38. Rb7 {[%clk 0:00:03.5]} 38... a4 {[%clk 0:00:27.3]} 39. h3 {[%clk
0:00:03]} 39... Ra2 {[%clk 0:00:26.9]} 40. Bf1 {[%clk 0:00:02.4]} 40... Rc2
{[%clk 0:00:26]} 41. Rb4 {[%clk 0:00:02.3]} 41... Rxc3 {[%clk 0:00:24.7]} 42.
Rxa4 {[%clk 0:00:02.7]} 42... Rxg3 {[%clk 0:00:24.3]} 43. Kh2 {[%clk 0:00:02.6]}
43... Rc3 {[%clk 0:00:24]} 44. hxg4 {[%clk 0:00:02.3]} 44... hxg4 {[%clk
0:00:23.8]} 45. Bxc4 {[%clk 0:00:02]} 45... Nd2 {[%clk 0:00:23]} 0-1

[Event "Late-Titled-Tuesday-Blitz-October-24-2023"]
[Site "Chess.com"]
[Date "2023.10.24"]
[Round "7"]
[White "Nf3c5"]
[Black "Witik"]
[Result "0-1"]
[WhiteElo "2633"]
[BlackElo "2810"]
[TimeControl "180+1"]
[EndTime "15:15:55 PDT"]
[Termination "Witik won by resignation"]

1. d4 {[%clk 0:03:00.9]} 1... Nf6 {[%clk 0:02:59.8]} 2. Nf3 {[%clk 0:03:00.2]}
2... g6 {[%clk 0:02:59.6]} 3. Bg5 {[%clk 0:03:00]} 3... Bg7 {[%clk 0:02:59.9]}
4. Nbd2 {[%clk 0:03:00]} 4... d5 {[%clk 0:03:00]} 5. e3 {[%clk 0:02:58.1]} 5...
O-O {[%clk 0:02:59.9]} 6. Be2 {[%clk 0:02:54]} 6... Nbd7 {[%clk 0:03:00.2]} 7.
O-O {[%clk 0:02:50.2]} 7... c5 {[%clk 0:03:00.5]} 8. c3 {[%clk 0:02:49.8]} 8...
Re8 {[%clk 0:03:00.7]} 9. b4 {[%clk 0:02:32.2]} 9... c4 {[%clk 0:02:53.1]} 10.
h3 {[%clk 0:02:21.3]} 10... a5 {[%clk 0:02:50.9]} 11. a3 {[%clk 0:02:11.5]}
11... Nb6 {[%clk 0:02:49.6]} 12. Ne5 {[%clk 0:02:04.3]} 12... Nfd7 {[%clk
0:02:48.2]} 13. Nxd7 {[%clk 0:01:56.8]} 13... Bxd7 {[%clk 0:02:46.6]} 14. e4
{[%clk 0:01:56.6]} 14... h6 {[%clk 0:02:35.1]} 15. Bh4 {[%clk 0:01:55.7]} 15...
Bc6 {[%clk 0:02:21.1]} 16. Bf3 {[%clk 0:01:51.3]} 16... axb4 {[%clk 0:02:01.3]}
17. axb4 {[%clk 0:01:49.6]} 17... Rxa1 {[%clk 0:02:01.3]} 18. Qxa1 {[%clk
0:01:50.5]} 18... g5 {[%clk 0:01:57.6]} 19. Bg3 {[%clk 0:01:50.2]} 19... dxe4
{[%clk 0:01:29.2]} 20. Bxe4 {[%clk 0:01:42.5]} 20... Bxe4 {[%clk 0:01:28.9]} 21.
Nxe4 {[%clk 0:01:42.6]} 21... f5 {[%clk 0:01:29.6]} 22. Nc5 {[%clk 0:01:41.7]}
22... f4 {[%clk 0:01:30.2]} 23. Bh2 {[%clk 0:01:41.8]} 23... e5 {[%clk
0:01:28.2]} 24. dxe5 {[%clk 0:01:33.8]} 24... Rxe5 {[%clk 0:01:18.3]} 25. Qa7
{[%clk 0:01:27.9]} 25... Nd5 {[%clk 0:01:14.6]} 26. Qxb7 {[%clk 0:01:15.5]}
26... Nxc3 {[%clk 0:01:11.6]} 27. Ra1 {[%clk 0:01:14]} 27... Re7 {[%clk
0:01:00.5]} 28. Qa6 {[%clk 0:00:44.4]} 28... Ne2+ {[%clk 0:00:54.7]} 29. Kf1
{[%clk 0:00:37.9]} 29... Bxa1 {[%clk 0:00:53.3]} 30. Qxa1 {[%clk 0:00:37.4]}
30... c3 {[%clk 0:00:43.8]} 31. g3 {[%clk 0:00:26.1]} 31... f3 {[%clk
0:00:39.5]} 32. g4 {[%clk 0:00:25.9]} 32... Qd2 {[%clk 0:00:12.6]} 33. Qa8+
{[%clk 0:00:18.9]} 33... Kg7 {[%clk 0:00:12.1]} 34. Qxf3 {[%clk 0:00:07.2]}
34... c2 {[%clk 0:00:12.4]} 35. Ne4 {[%clk 0:00:04]} 35... c1=Q+ {[%clk
0:00:11.8]} 36. Kg2 {[%clk 0:00:04.5]} 36... Rxe4 {[%clk 0:00:07.4]} 37. Qxe4
{[%clk 0:00:04.4]} 37... Nf4+ {[%clk 0:00:06.5]} 38. Bxf4 {[%clk 0:00:02.3]}
38... Qxf4 {[%clk 0:00:07.2]} 39. Qe7+ {[%clk 0:00:02.1]} 39... Qf7 {[%clk
0:00:05.9]} 40. Qe5+ {[%clk 0:00:02.7]} 40... Kf8 {[%clk 0:00:05.7]} 41. Qb8+
{[%clk 0:00:02.3]} 41... Ke7 {[%clk 0:00:06.2]} 42. Qb7+ {[%clk 0:00:02]} 42...
Ke6 {[%clk 0:00:06.5]} 43. Qc8+ {[%clk 0:00:02.1]} 43... Qxc8 {[%clk 0:00:05.5]}
0-1

[Event "Late-Titled-Tuesday-Blitz-October-24-2023"]
[Site "Chess.com"]
[Date "2023.10.24"]
[Round "7"]
[White "balachess2006"]
[Black "victormago"]
[Result "0-1"]
[WhiteElo "2558"]
[BlackElo "2432"]
[TimeControl "180+1"]
[EndTime "15:16:14 PDT"]
[Termination "victormago won by resignation"]

1. Nf3 {[%clk 0:02:54.8]} 1... Nf6 {[%clk 0:02:47.6]} 2. c4 {[%clk 0:02:54.7]}
2... c5 {[%clk 0:02:42.7]} 3. Nc3 {[%clk 0:02:54.3]} 3... e6 {[%clk 0:02:38.7]}
4. e3 {[%clk 0:02:54]} 4... b6 {[%clk 0:02:38.5]} 5. d4 {[%clk 0:02:53.6]} 5...
Bb7 {[%clk 0:02:33.9]} 6. d5 {[%clk 0:02:51.7]} 6... exd5 {[%clk 0:02:33.9]} 7.
cxd5 {[%clk 0:02:52.6]} 7... d6 {[%clk 0:02:32.3]} 8. Bb5+ {[%clk 0:02:38.1]}
8... Nbd7 {[%clk 0:02:30.4]} 9. e4 {[%clk 0:02:38.1]} 9... Be7 {[%clk 0:02:30]}
10. O-O {[%clk 0:02:37.7]} 10... O-O {[%clk 0:02:29.7]} 11. a4 {[%clk
0:02:34.1]} 11... Ng4 {[%clk 0:02:21.8]} 12. Bf4 {[%clk 0:02:32.2]} 12... a6
{[%clk 0:02:16.9]} 13. Bc6 {[%clk 0:02:32.2]} 13... Qc7 {[%clk 0:02:11.5]} 14.
h3 {[%clk 0:02:21.7]} 14... Nge5 {[%clk 0:01:59.2]} 15. Nxe5 {[%clk 0:02:13.7]}
15... Nxe5 {[%clk 0:01:59.2]} 16. Bxb7 {[%clk 0:02:10.4]} 16... Qxb7 {[%clk
0:01:58.3]} 17. Bxe5 {[%clk 0:02:10.6]} 17... dxe5 {[%clk 0:01:58.5]} 18. Qe2
{[%clk 0:01:50.9]} 18... Bd6 {[%clk 0:01:58.2]} 19. Nd1 {[%clk 0:01:38]} 19...
b5 {[%clk 0:01:54.3]} 20. Ne3 {[%clk 0:01:38.2]} 20... g6 {[%clk 0:01:54.7]} 21.
h4 {[%clk 0:01:32.1]} 21... c4 {[%clk 0:01:46.7]} 22. h5 {[%clk 0:01:31]} 22...
Bc5 {[%clk 0:01:43.8]} 23. Ng4 {[%clk 0:01:29.7]} 23... f6 {[%clk 0:01:40.6]}
24. axb5 {[%clk 0:01:28.6]} 24... axb5 {[%clk 0:01:40.4]} 25. Rxa8 {[%clk
0:01:28]} 25... Qxa8 {[%clk 0:01:40.5]} 26. b3 {[%clk 0:01:26.5]} 26... Qc8
{[%clk 0:01:28.5]} 27. bxc4 {[%clk 0:01:23.3]} 27... bxc4 {[%clk 0:01:28.8]} 28.
Rc1 {[%clk 0:01:17.3]} 28... c3 {[%clk 0:01:18]} 29. hxg6 {[%clk 0:00:26.9]}
29... hxg6 {[%clk 0:01:16.9]} 30. Ne3 {[%clk 0:00:26.3]} 30... Bd4 {[%clk
0:01:12.3]} 31. Nc2 {[%clk 0:00:25.6]} 31... Qc5 {[%clk 0:01:11]} 32. Rb1 {[%clk
0:00:21.7]} 32... Kg7 {[%clk 0:01:06.3]} 33. Rb7+ {[%clk 0:00:20.5]} 33... Rf7
{[%clk 0:01:06.8]} 34. Rxf7+ {[%clk 0:00:21]} 34... Kxf7 {[%clk 0:01:07.2]} 35.
Qa6 {[%clk 0:00:21.5]} 35... Bxf2+ {[%clk 0:00:59.7]} 36. Kf1 {[%clk 0:00:20.3]}
36... Bd4 {[%clk 0:00:59.5]} 37. Qb7+ {[%clk 0:00:18.7]} 37... Kg8 {[%clk
0:00:59.4]} 38. Qd7 {[%clk 0:00:16.7]} 38... Qb6 {[%clk 0:00:53]} 39. Ke2 {[%clk
0:00:07]} 39... Qa6+ {[%clk 0:00:50.7]} 40. Ke1 {[%clk 0:00:07.6]} 40... Qd3
{[%clk 0:00:47.9]} 41. Qe6+ {[%clk 0:00:08.1]} 41... Kg7 {[%clk 0:00:47.8]} 42.
Qd7+ {[%clk 0:00:08.7]} 42... Kh6 {[%clk 0:00:46.5]} 43. Qh3+ {[%clk 0:00:09.3]}
43... Qxh3 {[%clk 0:00:46.1]} 44. gxh3 {[%clk 0:00:10.2]} 44... Bc5 {[%clk
0:00:39.1]} 45. Ke2 {[%clk 0:00:09.9]} 45... Kg5 {[%clk 0:00:39.4]} 46. Kf3
{[%clk 0:00:10.1]} 46... Kh4 {[%clk 0:00:38.8]} 47. Kg2 {[%clk 0:00:10.3]} 47...
f5 {[%clk 0:00:39.2]} 48. exf5 {[%clk 0:00:11.2]} 48... gxf5 {[%clk 0:00:39.5]}
49. d6 {[%clk 0:00:07.4]} 49... Bxd6 {[%clk 0:00:39.1]} 50. Ne3 {[%clk 0:00:08]}
50... Kg5 {[%clk 0:00:39.2]} 51. h4+ {[%clk 0:00:07.4]} 51... Kf6 {[%clk
0:00:38.9]} 52. Kf3 {[%clk 0:00:06]} 52... Ke6 {[%clk 0:00:37.5]} 53. h5 {[%clk
0:00:06]} 53... Bf8 {[%clk 0:00:37]} 54. Nc2 {[%clk 0:00:04.6]} 54... Bh6 {[%clk
0:00:35.4]} 55. Nb4 {[%clk 0:00:04.3]} 55... e4+ {[%clk 0:00:34.2]} 56. Ke2
{[%clk 0:00:04.9]} 56... f4 {[%clk 0:00:32.3]} 57. Kf2 {[%clk 0:00:04.2]} 57...
f3 {[%clk 0:00:30.5]} 58. Nc2 {[%clk 0:00:03.9]} 58... Ke5 {[%clk 0:00:29.4]}
59. Nb4 {[%clk 0:00:03.9]} 59... Bg5 {[%clk 0:00:25.8]} 60. Nc2 {[%clk
0:00:03.1]} 60... Bh4+ {[%clk 0:00:25.2]} 61. Ke3 {[%clk 0:00:03.7]} 61... Bg5+
{[%clk 0:00:24.4]} 62. Kf2 {[%clk 0:00:04.1]} 62... Kd5 {[%clk 0:00:24.8]} 63.
Ne3+ {[%clk 0:00:02.1]} 63... Bxe3+ {[%clk 0:00:23.8]} 64. Kxe3 {[%clk 0:00:03]}
64... c2 {[%clk 0:00:24.3]} 0-1

[Event "Late-Titled-Tuesday-Blitz-October-24-2023"]
[Site "Chess.com"]
[Date "2023.10.24"]
[Round "7"]
[White "IMSlavin"]
[Black "Karttunen"]
[Result "0-1"]
[WhiteElo "2240"]
[BlackElo "2579"]
[TimeControl "180+1"]
[EndTime "15:16:16 PDT"]
[Termination "Karttunen won by resignation"]

1. e4 {[%clk 0:02:59.3]} 1... Nf6 {[%clk 0:02:48.2]} 2. Nc3 {[%clk 0:02:58.7]}
2... d5 {[%clk 0:02:48.3]} 3. e5 {[%clk 0:02:58.7]} 3... Ne4 {[%clk 0:02:48.4]}
4. Nxe4 {[%clk 0:02:55.5]} 4... dxe4 {[%clk 0:02:48.5]} 5. d4 {[%clk 0:02:55.5]}
5... Bf5 {[%clk 0:02:47.9]} 6. Ne2 {[%clk 0:02:52.1]} 6... e6 {[%clk 0:02:47.1]}
7. Ng3 {[%clk 0:02:51.9]} 7... Bg6 {[%clk 0:02:44.6]} 8. Bb5+ {[%clk 0:02:46.4]}
8... c6 {[%clk 0:02:43.9]} 9. Be2 {[%clk 0:02:45.3]} 9... c5 {[%clk 0:02:43.4]}
10. Be3 {[%clk 0:02:23.7]} 10... Nc6 {[%clk 0:02:39.5]} 11. dxc5 {[%clk
0:02:19.7]} 11... Nxe5 {[%clk 0:02:34.9]} 12. O-O {[%clk 0:02:16.1]} 12... Be7
{[%clk 0:02:20.5]} 13. b4 {[%clk 0:02:12.6]} 13... O-O {[%clk 0:02:18.7]} 14.
Bf4 {[%clk 0:01:55.9]} 14... Nc6 {[%clk 0:02:16.6]} 15. a3 {[%clk 0:01:51.4]}
15... e5 {[%clk 0:02:14.9]} 16. Be3 {[%clk 0:01:47.6]} 16... f5 {[%clk
0:02:15.1]} 17. Bc4+ {[%clk 0:01:38.9]} 17... Kh8 {[%clk 0:02:14.8]} 18. Bc1
{[%clk 0:01:13.6]} 18... f4 {[%clk 0:02:09]} 19. Ne2 {[%clk 0:01:07.1]} 19...
Nd4 {[%clk 0:01:38.3]} 20. Bb2 {[%clk 0:00:55.5]} 20... Bf6 {[%clk 0:01:25.2]}
21. c3 {[%clk 0:00:45]} 21... Nxe2+ {[%clk 0:01:18.3]} 22. Qxe2 {[%clk
0:00:43.9]} 22... f3 {[%clk 0:01:18]} 23. gxf3 {[%clk 0:00:36]} 23... exf3
{[%clk 0:01:15.8]} 24. Qxf3 {[%clk 0:00:32.4]} 24... e4 {[%clk 0:01:14.2]} 25.
Qg2 {[%clk 0:00:17.5]} 25... Be5 {[%clk 0:01:09.4]} 26. Rad1 {[%clk 0:00:16.9]}
26... Qh4 {[%clk 0:01:05.9]} 27. Rd5 {[%clk 0:00:16.3]} 27... Rf5 {[%clk
0:00:56.1]} 28. Be2 {[%clk 0:00:16.3]} 28... Rg5 {[%clk 0:00:52.5]} 29. Rxe5
{[%clk 0:00:13.9]} 29... Rxg2+ {[%clk 0:00:51.7]} 30. Kxg2 {[%clk 0:00:14]}
30... Rd8 {[%clk 0:00:47.4]} 31. Rd1 {[%clk 0:00:12]} 31... Rxd1 {[%clk
0:00:45]} 32. Bxd1 {[%clk 0:00:12.2]} 32... h6 {[%clk 0:00:42.9]} 33. c4 {[%clk
0:00:12.1]} 33... Kg8 {[%clk 0:00:35]} 34. h3 {[%clk 0:00:11.9]} 34... e3 {[%clk
0:00:31.1]} 35. Rxe3 {[%clk 0:00:10.3]} 35... Be4+ {[%clk 0:00:28.9]} 36. Bf3
{[%clk 0:00:07.5]} 36... Qg5+ {[%clk 0:00:28.5]} 37. Kf1 {[%clk 0:00:07.3]}
37... Bxf3 {[%clk 0:00:26.4]} 38. Rxf3 {[%clk 0:00:07.6]} 38... Qd2 {[%clk
0:00:26.6]} 39. Bc3 {[%clk 0:00:07.1]} 39... Qc1+ {[%clk 0:00:22.9]} 40. Kg2
{[%clk 0:00:07.4]} 40... Qxa3 {[%clk 0:00:22.9]} 41. Rg3 {[%clk 0:00:07.7]}
41... g5 {[%clk 0:00:21]} 42. h4 {[%clk 0:00:08]} 42... Qb3 {[%clk 0:00:16.2]}
43. hxg5 {[%clk 0:00:08.1]} 43... h5 {[%clk 0:00:16.9]} 44. g6 {[%clk
0:00:07.8]} 44... Qxc4 {[%clk 0:00:16.2]} 45. g7 {[%clk 0:00:07.6]} 45... h4
{[%clk 0:00:15.7]} 46. Rf3 {[%clk 0:00:07.6]} 46... Qg4+ {[%clk 0:00:15.8]} 47.
Rg3 {[%clk 0:00:06.4]} 47... hxg3 {[%clk 0:00:15.6]} 48. fxg3 {[%clk 0:00:06.9]}
48... Qe4+ {[%clk 0:00:13]} 49. Kh3 {[%clk 0:00:07.1]} 49... Qf5+ {[%clk
0:00:13.1]} 50. Kh4 {[%clk 0:00:06]} 50... Kh7 {[%clk 0:00:12.1]} 51. g4 {[%clk
0:00:05.1]} 51... Qf2+ {[%clk 0:00:12.1]} 52. Kg5 {[%clk 0:00:04.7]} 52... Qe3+
{[%clk 0:00:12.5]} 53. Kf6 {[%clk 0:00:04.7]} 53... Qxc3+ {[%clk 0:00:13.4]} 54.
Kf7 {[%clk 0:00:04.9]} 54... Qxg7+ {[%clk 0:00:13.6]} 0-1

[Event "Late-Titled-Tuesday-Blitz-October-24-2023"]
[Site "Chess.com"]
[Date "2023.10.24"]
[Round "7"]
[White "alexrustemov"]
[Black "ValeriyGrinev"]
[Result "1/2-1/2"]
[WhiteElo "2792"]
[BlackElo "2621"]
[TimeControl "180+1"]
[EndTime "15:16:23 PDT"]
[Termination "Game drawn by agreement"]

1. d4 {[%clk 0:03:00.9]} 1... d5 {[%clk 0:02:57.6]} 2. c4 {[%clk 0:03:01.2]}
2... e6 {[%clk 0:02:57.7]} 3. Nc3 {[%clk 0:03:01.5]} 3... a6 {[%clk 0:02:57.8]}
4. cxd5 {[%clk 0:02:59.6]} 4... exd5 {[%clk 0:02:58.7]} 5. Nf3 {[%clk
0:02:59.6]} 5... Nf6 {[%clk 0:02:58.7]} 6. Bf4 {[%clk 0:02:58.4]} 6... Bd6
{[%clk 0:02:58.3]} 7. Bxd6 {[%clk 0:02:56.3]} 7... Qxd6 {[%clk 0:02:58.5]} 8. h3
{[%clk 0:02:51.3]} 8... Bf5 {[%clk 0:02:55.8]} 9. Qb3 {[%clk 0:02:49.9]} 9...
Nc6 {[%clk 0:02:55.1]} 10. e3 {[%clk 0:02:49.1]} 10... O-O {[%clk 0:02:50.3]}
11. Be2 {[%clk 0:02:48.9]} 11... Rab8 {[%clk 0:02:39.2]} 12. O-O {[%clk
0:02:48.4]} 12... Rfe8 {[%clk 0:02:39.2]} 13. Rfc1 {[%clk 0:02:47.4]} 13... Ne7
{[%clk 0:02:27.4]} 14. Qa3 {[%clk 0:02:44.2]} 14... Qxa3 {[%clk 0:02:15.7]} 15.
bxa3 {[%clk 0:02:45.1]} 15... Ng6 {[%clk 0:02:09.3]} 16. Na4 {[%clk 0:02:39.3]}
16... c6 {[%clk 0:02:08.1]} 17. Nc5 {[%clk 0:02:38.1]} 17... Nd7 {[%clk
0:02:07.6]} 18. Nxd7 {[%clk 0:02:26.2]} 18... Bxd7 {[%clk 0:02:08.5]} 19. Bd3
{[%clk 0:02:25.2]} 19... Ne7 {[%clk 0:02:08.3]} 20. Rab1 {[%clk 0:02:22.7]}
20... Bf5 {[%clk 0:02:07.5]} 21. Ne1 {[%clk 0:02:21.7]} 21... g5 {[%clk
0:01:47.1]} 22. Rb3 {[%clk 0:02:19.5]} 22... f6 {[%clk 0:01:39.2]} 23. Rcb1
{[%clk 0:02:18.7]} 23... b5 {[%clk 0:01:39.1]} 24. Rc1 {[%clk 0:02:10.8]} 24...
Rec8 {[%clk 0:01:31.4]} 25. Rbc3 {[%clk 0:02:08.7]} 25... Rb6 {[%clk 0:01:30.3]}
26. g4 {[%clk 0:01:51.2]} 26... Bg6 {[%clk 0:01:22.4]} 27. Bxg6 {[%clk
0:01:50.7]} 27... hxg6 {[%clk 0:01:22]} 28. Nd3 {[%clk 0:01:51]} 28... a5 {[%clk
0:01:17.2]} 29. Rc5 {[%clk 0:01:44.4]} 29... Kf7 {[%clk 0:01:15.4]} 30. a4
{[%clk 0:01:44.3]} 30... Rcb8 {[%clk 0:01:08.5]} 31. axb5 {[%clk 0:01:44]} 31...
Rxb5 {[%clk 0:01:09.4]} 32. R5c3 {[%clk 0:01:36.4]} 32... Rb1 {[%clk 0:01:06.5]}
33. Kg2 {[%clk 0:01:33]} 33... Rxc1 {[%clk 0:01:06.3]} 34. Rxc1 {[%clk
0:01:32.1]} 34... Ke6 {[%clk 0:01:02.7]} 35. Rc5 {[%clk 0:01:28.6]} 35... Rb5
{[%clk 0:01:01.2]} 36. Rc3 {[%clk 0:01:21]} 36... Kd6 {[%clk 0:00:59.5]} 37. Kf3
{[%clk 0:01:19.7]} 37... Nc8 {[%clk 0:00:56.5]} 38. Nc5 {[%clk 0:01:18.1]} 38...
Nb6 {[%clk 0:00:54.4]} 39. Rc2 {[%clk 0:01:13]} 39... Nc4 {[%clk 0:00:52.3]} 40.
Kg3 {[%clk 0:01:10.5]} 40... Rb1 {[%clk 0:00:44]} 41. h4 {[%clk 0:01:07.6]}
41... Rg1+ {[%clk 0:00:41.4]} 42. Kh2 {[%clk 0:01:02.9]} 42... Rxg4 {[%clk
0:00:41.3]} 43. hxg5 {[%clk 0:01:02.3]} 43... Rxg5 {[%clk 0:00:40.6]} 44. Rc1
{[%clk 0:00:57.8]} 44... Rh5+ {[%clk 0:00:32.9]} 45. Kg2 {[%clk 0:00:58]} 45...
Rg5+ {[%clk 0:00:33.6]} 46. Kf3 {[%clk 0:00:57.3]} 46... Nd2+ {[%clk 0:00:31.9]}
47. Ke2 {[%clk 0:00:56.7]} 47... Ne4 {[%clk 0:00:32.3]} 48. Nb7+ {[%clk
0:00:47.5]} 48... Kd7 {[%clk 0:00:25]} 49. Nxa5 {[%clk 0:00:47.6]} 49... Rg2
{[%clk 0:00:25.5]} 50. Rf1 {[%clk 0:00:47.4]} 50... Rh2 {[%clk 0:00:25]} 51. Ke1
{[%clk 0:00:45.9]} 51... Kc7 {[%clk 0:00:21.4]} 52. Nb3 {[%clk 0:00:45.4]} 52...
Kb6 {[%clk 0:00:21.8]} 53. Nd2 {[%clk 0:00:41.8]} 53... Nc3 {[%clk 0:00:20.4]}
54. a3 {[%clk 0:00:40.6]} 54... Kb5 {[%clk 0:00:20.7]} 55. Rg1 {[%clk
0:00:31.9]} 55... g5 {[%clk 0:00:19.2]} 56. Nf1 {[%clk 0:00:25.1]} 56... Rh8
{[%clk 0:00:18.6]} 57. Ng3 {[%clk 0:00:25.1]} 57... Ka4 {[%clk 0:00:18.3]} 58.
Ne2 {[%clk 0:00:25]} 58... Ne4 {[%clk 0:00:17.7]} 59. f3 {[%clk 0:00:24.8]}
59... Nd6 {[%clk 0:00:17.7]} 60. Kf2 {[%clk 0:00:24.2]} 60... Rh2+ {[%clk
0:00:17]} 61. Rg2 {[%clk 0:00:24.5]} 61... Rxg2+ {[%clk 0:00:17.4]} 62. Kxg2
{[%clk 0:00:24.8]} 62... Kxa3 {[%clk 0:00:18.3]} 63. Ng3 {[%clk 0:00:19.3]}
63... Kb3 {[%clk 0:00:18.1]} 64. Kf2 {[%clk 0:00:19.3]} 64... Kc3 {[%clk
0:00:17.8]} 65. Ke2 {[%clk 0:00:19.7]} 65... Kc4 {[%clk 0:00:16.4]} 66. Nh5
{[%clk 0:00:19.3]} 66... Ne8 {[%clk 0:00:16.7]} 67. Kd2 {[%clk 0:00:18.7]} 67...
c5 {[%clk 0:00:17.2]} 68. dxc5 {[%clk 0:00:18.7]} 68... Kxc5 {[%clk 0:00:18.1]}
69. Kd3 {[%clk 0:00:19.4]} 69... Kd6 {[%clk 0:00:18.6]} 70. Kd4 {[%clk 0:00:18]}
1/2-1/2